[Event "Titled Tuesday Blitz May 4 2021"]
[White "Dimic, Pavle"]
[Black "Sarkar, Justin"]
[WhiteFideId "937428"]
[BlackFideId "2010011"]
[WhiteElo "2216"]
[BlackElo "2140"]
[Result "1-0"]
[Round "05"]
[TimeControl "180+1"]
[Date "2021.05.04"]
[WhiteClock "0:01:27"]
[BlackClock "0:00:01"]

1. d4 {[%clk 0:03:00]}  Nf6 {[%clk 0:02:31]} 2. c4 {[%clk 0:02:59]}  e6 {[%clk 0:02:31]} 3. Nc3 {[%clk 0:02:59]}  Bb4 {[%clk 0:02:30]} 4. e3 {[%clk 0:02:58]}  O-O {[%clk 0:02:28]} 5. Bd2 {[%clk 0:02:58]}  d5 {[%clk 0:02:25]} 6. Nf3 {[%clk 0:02:58]}  b6 {[%clk 0:02:21]} 7. cxd5 {[%clk 0:02:58]}  exd5 {[%clk 0:02:20]} 8. Rc1 {[%clk 0:02:58]}  a5 {[%clk 0:02:05]} 9. Bd3 {[%clk 0:02:52]}  Ba6 {[%clk 0:02:02]} 10. Bxa6 {[%clk 0:02:52]}  Nxa6 {[%clk 0:02:02]} 11. O-O {[%clk 0:02:53]}  c5 {[%clk 0:01:42]} 12. dxc5 {[%clk 0:02:48]}  Nxc5 {[%clk 0:01:23]} 13. a3 {[%clk 0:02:48]}  Bxc3 {[%clk 0:01:22]} 14. Bxc3 {[%clk 0:02:48]}  Nfe4 {[%clk 0:01:20]} 15. Bd4 {[%clk 0:02:44]}  a4 {[%clk 0:01:18]} 16. Ne5 {[%clk 0:02:39]}  Nb3 {[%clk 0:01:10]} 17. Rc2 {[%clk 0:02:38]}  f6 {[%clk 0:00:45]} 18. Nd3 {[%clk 0:02:35]}  Qd6 {[%clk 0:00:30]} 19. f3 {[%clk 0:02:33]}  Nec5 {[%clk 0:00:21]} 20. Nb4 {[%clk 0:02:32]}  Rfd8 {[%clk 0:00:13]} 21. Qe2 {[%clk 0:02:28]}  Rac8 {[%clk 0:00:09]} 22. Rd1 {[%clk 0:02:27]}  Ne6 {[%clk 0:00:05]} 23. Bc3 {[%clk 0:02:14]}  d4 {[%clk 0:00:04]} 24. exd4 {[%clk 0:02:10]}  Nexd4 {[%clk 0:00:02]} 25. Bxd4 {[%clk 0:02:01]}  Nxd4 {[%clk 0:00:01]} 26. Qd2 {[%clk 0:01:32]}  Rxc2 {[%clk 0:00:01]} 27. Nxc2 {[%clk 0:01:31]}  Ne2+ {[%clk 0:00:01]} 28. Qxe2 {[%clk 0:01:26]}  Qxd1+ {[%clk 0:00:02]} 29. Kf2 {[%clk 0:01:25]}  Qxe2+ {[%clk 0:00:02]} 30. Kxe2 {[%clk 0:01:26]}  Rc8 {[%clk 0:00:02]} 31. Kd3 {[%clk 0:01:26]}  Kf7 {[%clk 0:00:01]} 32. Ne3 {[%clk 0:01:23]}  Ke6 {[%clk 0:00:01]} 33. Nc4 {[%clk 0:01:23]}  b5 {[%clk 0:00:02]} 34. Nd2 {[%clk 0:01:23]}  Rc1 {[%clk 0:00:02]} 35. Ne4 {[%clk 0:01:23]}  Rh1 {[%clk 0:00:02]} 36. Nc3 {[%clk 0:01:24]}  f5 {[%clk 0:00:02]} 37. Nxb5 {[%clk 0:01:25]}  Rxh2 {[%clk 0:00:02]} 38. Nc3 {[%clk 0:01:24]}  Rxg2 {[%clk 0:00:02]} 39. Nxa4 {[%clk 0:01:25]}  h5 {[%clk 0:00:02]} 40. Nc5+ {[%clk 0:01:26]}  Kd5 {[%clk 0:00:02]} 41. b4 {[%clk 0:01:26]}  h4 {[%clk 0:00:02]} 42. Ke3 {[%clk 0:01:24]}  h3 {[%clk 0:00:02]} 43. Nd3 {[%clk 0:01:25]}  h2 {[%clk 0:00:02]} 44. Nf4+ {[%clk 0:01:26]}  Kd6 {[%clk 0:00:02]} 45. Nxg2 {[%clk 0:01:25]}  h1=Q {[%clk 0:00:02]} 46. Nf4 {[%clk 0:01:26]}  Qe1+ {[%clk 0:00:01]} 47. Ne2 {[%clk 0:01:27]} 1-0


[Site "https://www.chess.com"]

[Event "Titled Tuesday Blitz May 4 2021"]
[White "Domingo Nunez, Alejandro"]
[Black "Matveeva, Olga"]
[WhiteFideId "22245561"]
[BlackFideId "24107018"]
[WhiteElo "2269"]
[BlackElo "2108"]
[Result "0-1"]
[Round "05"]
[TimeControl "180+1"]
[Date "2021.05.04"]
[WhiteClock "0:00:02"]
[BlackClock "0:00:27"]

1. e4 {[%clk 0:02:08]}  e6 {[%clk 0:02:59]} 2. Nf3 {[%clk 0:02:08]}  d5 {[%clk 0:02:59]} 3. Nc3 {[%clk 0:02:08]}  Nf6 {[%clk 0:02:56]} 4. e5 {[%clk 0:02:08]}  Nfd7 {[%clk 0:02:55]} 5. d4 {[%clk 0:02:08]}  c5 {[%clk 0:02:55]} 6. dxc5 {[%clk 0:02:08]}  Bxc5 {[%clk 0:02:53]} 7. Bd3 {[%clk 0:02:07]}  Nc6 {[%clk 0:02:52]} 8. Bf4 {[%clk 0:02:06]}  Qb6 {[%clk 0:02:36]} 9. O-O {[%clk 0:02:04]}  a6 {[%clk 0:02:29]} 10. Na4 {[%clk 0:02:00]}  Qc7 {[%clk 0:02:29]} 11. Nxc5 {[%clk 0:01:58]}  Nxc5 {[%clk 0:02:30]} 12. a3 {[%clk 0:01:58]}  Nxd3 {[%clk 0:02:26]} 13. cxd3 {[%clk 0:01:58]}  O-O {[%clk 0:02:24]} 14. d4 {[%clk 0:01:58]}  Bd7 {[%clk 0:02:17]} 15. Rc1 {[%clk 0:01:57]}  Qb6 {[%clk 0:02:15]} 16. Qd2 {[%clk 0:01:55]}  Rfc8 {[%clk 0:02:13]} 17. Rfd1 {[%clk 0:01:44]}  Na5 {[%clk 0:02:11]} 18. b4 {[%clk 0:01:17]}  Nc4 {[%clk 0:02:07]} 19. Qd3 {[%clk 0:01:16]}  Ba4 {[%clk 0:02:02]} 20. Re1 {[%clk 0:00:59]}  Bb5 {[%clk 0:02:01]} 21. Qb1 {[%clk 0:00:56]}  Nxa3 {[%clk 0:01:53]} 22. Qb3 {[%clk 0:00:52]}  Nc4 {[%clk 0:01:50]} 23. Ng5 {[%clk 0:00:51]}  h6 {[%clk 0:01:47]} 24. Nf3 {[%clk 0:00:49]}  a5 {[%clk 0:01:32]} 25. bxa5 {[%clk 0:00:47]}  Rxa5 {[%clk 0:01:29]} 26. Nd2 {[%clk 0:00:19]}  Rca8 {[%clk 0:01:18]} 27. Nxc4 {[%clk 0:00:18]}  dxc4 {[%clk 0:01:17]} 28. Rxc4 {[%clk 0:00:18]}  Ra3 {[%clk 0:00:56]} 29. Qb4 {[%clk 0:00:14]}  Qa6 {[%clk 0:00:43]} 30. Rc7 {[%clk 0:00:13]}  Bc6 {[%clk 0:00:39]} 31. Qe7 {[%clk 0:00:12]}  Rf8 {[%clk 0:00:39]} 32. h3 {[%clk 0:00:04]}  Ra1 {[%clk 0:00:38]} 33. Rxa1 {[%clk 0:00:04]}  Qxa1+ {[%clk 0:00:38]} 34. Kh2 {[%clk 0:00:05]}  Qxd4 {[%clk 0:00:38]} 35. Bg3 {[%clk 0:00:05]}  Qe4 {[%clk 0:00:37]} 36. f3 {[%clk 0:00:04]}  Qg6 {[%clk 0:00:35]} 37. Qd6 {[%clk 0:00:02]}  Ra8 {[%clk 0:00:27]} 0-1


[Site "https://www.chess.com"]

[Event "Titled Tuesday Blitz May 4 2021"]
[White "Dovbnia, Nikita"]
[Black "de Leon, Patricia"]
[WhiteFideId "54104599"]
[BlackFideId "3000273"]
[WhiteElo "2056"]
[BlackElo "1989"]
[Result "1-0"]
[Round "05"]
[TimeControl "180+1"]
[Date "2021.05.04"]
[WhiteClock "0:01:39"]
[BlackClock "0:00:01"]

1. e4 {[%clk 0:03:00]}  e6 {[%clk 0:01:05]} 2. d4 {[%clk 0:03:00]}  f5 {[%clk 0:01:05]} 3. exf5 {[%clk 0:02:56]}  exf5 {[%clk 0:01:05]} 4. Nf3 {[%clk 0:02:52]}  Nf6 {[%clk 0:01:05]} 5. Bd3 {[%clk 0:02:50]}  d6 {[%clk 0:01:02]} 6. O-O {[%clk 0:02:50]}  Be7 {[%clk 0:01:01]} 7. Re1 {[%clk 0:02:50]}  O-O {[%clk 0:01:01]} 8. Nc3 {[%clk 0:02:48]}  c6 {[%clk 0:00:53]} 9. Ng5 {[%clk 0:02:47]}  d5 {[%clk 0:00:34]} 10. Ne6 {[%clk 0:02:45]}  Bxe6 {[%clk 0:00:34]} 11. Rxe6 {[%clk 0:02:46]}  Ne4 {[%clk 0:00:35]} 12. f3 {[%clk 0:02:33]}  Nxc3 {[%clk 0:00:34]} 13. bxc3 {[%clk 0:02:34]}  Nd7 {[%clk 0:00:32]} 14. Qe2 {[%clk 0:02:32]}  Bg5 {[%clk 0:00:16]} 15. Ba3 {[%clk 0:02:25]}  Rf7 {[%clk 0:00:15]} 16. Re1 {[%clk 0:02:25]}  Qc7 {[%clk 0:00:13]} 17. Re8+ {[%clk 0:02:16]}  Rxe8 {[%clk 0:00:13]} 18. Qxe8+ {[%clk 0:02:17]}  Nf8 {[%clk 0:00:14]} 19. c4 {[%clk 0:01:59]}  Qd7 {[%clk 0:00:14]} 20. cxd5 {[%clk 0:01:56]}  cxd5 {[%clk 0:00:14]} 21. c4 {[%clk 0:01:52]}  dxc4 {[%clk 0:00:08]} 22. Qxd7 {[%clk 0:01:52]}  Rxd7 {[%clk 0:00:03]} 23. Bxc4+ {[%clk 0:01:52]}  Kh8 {[%clk 0:00:02]} 24. Bxf8 {[%clk 0:01:52]}  Rxd4 {[%clk 0:00:02]} 25. Bb3 {[%clk 0:01:51]}  h6 {[%clk 0:00:02]} 26. Bc5 {[%clk 0:01:50]}  Rd2 {[%clk 0:00:02]} 27. Bxa7 {[%clk 0:01:46]}  b5 {[%clk 0:00:01]} 28. Bf7 {[%clk 0:01:40]}  Bf6 {[%clk 0:00:01]} 29. Bg6 {[%clk 0:01:39]} 1-0


[Site "https://www.chess.com"]

[Event "Titled Tuesday Blitz May 4 2021"]
[White "Dudzinski, Pawel"]
[Black "Suarez Uriel, Adrian"]
[WhiteFideId "1117890"]
[BlackFideId "22230874"]
[WhiteElo "2193"]
[BlackElo "2299"]
[Result "0-1"]
[Round "05"]
[TimeControl "180+1"]
[Date "2021.05.04"]
[WhiteClock "0:00:30"]
[BlackClock "0:00:38"]

1. e4 {[%clk 0:03:00]}  c5 {[%clk 0:02:59]} 2. Nc3 {[%clk 0:03:00]}  Nc6 {[%clk 0:02:58]} 3. g3 {[%clk 0:03:01]}  g6 {[%clk 0:02:58]} 4. Bg2 {[%clk 0:03:02]}  Bg7 {[%clk 0:02:58]} 5. d3 {[%clk 0:03:02]}  d6 {[%clk 0:02:58]} 6. Be3 {[%clk 0:03:03]}  Nf6 {[%clk 0:02:58]} 7. h3 {[%clk 0:03:02]}  O-O {[%clk 0:02:57]} 8. f4 {[%clk 0:03:02]}  Rb8 {[%clk 0:02:57]} 9. Nge2 {[%clk 0:03:02]}  Bd7 {[%clk 0:02:54]} 10. g4 {[%clk 0:03:00]}  b5 {[%clk 0:02:50]} 11. Ng3 {[%clk 0:03:00]}  b4 {[%clk 0:02:49]} 12. Nce2 {[%clk 0:03:00]}  Ne8 {[%clk 0:02:40]} 13. d4 {[%clk 0:02:55]}  cxd4 {[%clk 0:02:38]} 14. Nxd4 {[%clk 0:02:54]}  Nc7 {[%clk 0:02:32]} 15. Nxc6 {[%clk 0:02:47]}  Bxc6 {[%clk 0:02:32]} 16. Bxa7 {[%clk 0:02:45]}  Bxb2 {[%clk 0:02:26]} 17. Bxb8 {[%clk 0:02:44]}  Bc3+ {[%clk 0:02:21]} 18. Kf2 {[%clk 0:02:41]}  Qxb8 {[%clk 0:02:21]} 19. Rb1 {[%clk 0:02:28]}  Qb6+ {[%clk 0:02:17]} 20. Kf3 {[%clk 0:02:23]}  f5 {[%clk 0:01:51]} 21. Qd3 {[%clk 0:02:12]}  fxe4+ {[%clk 0:01:45]} 22. Nxe4 {[%clk 0:02:10]}  Nd5 {[%clk 0:00:59]} 23. Qc4 {[%clk 0:00:51]}  Rxf4+ {[%clk 0:00:47]} 24. Kg3 {[%clk 0:00:50]}  Be5 {[%clk 0:00:44]} 25. Kh4 {[%clk 0:00:49]}  e6 {[%clk 0:00:39]} 26. Rhf1 {[%clk 0:00:30]}  Qd8+ {[%clk 0:00:38]} 0-1


[Site "https://www.chess.com"]

[Event "Titled Tuesday Blitz May 4 2021"]
[White "Elissalt Cardenas, Hector"]
[Black "Torkkola, Henri"]
[WhiteFideId "3500632"]
[BlackFideId "507660"]
[WhiteElo "2215"]
[BlackElo "2137"]
[Result "0-1"]
[Round "05"]
[TimeControl "180+1"]
[Date "2021.05.04"]
[WhiteClock "0:00:01"]
[BlackClock "0:00:09"]

1. d4 {[%clk 0:03:00]}  g6 {[%clk 0:02:59]} 2. h4 {[%clk 0:02:57]}  h5 {[%clk 0:02:57]} 3. e4 {[%clk 0:02:46]}  Bg7 {[%clk 0:02:57]} 4. Nc3 {[%clk 0:02:38]}  d6 {[%clk 0:02:57]} 5. Bc4 {[%clk 0:02:29]}  Nf6 {[%clk 0:02:46]} 6. f3 {[%clk 0:02:25]}  O-O {[%clk 0:02:46]} 7. Nge2 {[%clk 0:02:25]}  a6 {[%clk 0:02:45]} 8. a4 {[%clk 0:02:16]}  Nc6 {[%clk 0:02:36]} 9. Be3 {[%clk 0:02:14]}  e5 {[%clk 0:02:34]} 10. Qd2 {[%clk 0:02:05]}  exd4 {[%clk 0:01:45]} 11. Nxd4 {[%clk 0:02:05]}  Ne5 {[%clk 0:01:44]} 12. Be2 {[%clk 0:02:04]}  c5 {[%clk 0:01:28]} 13. Nb3 {[%clk 0:02:03]}  Be6 {[%clk 0:01:23]} 14. Rd1 {[%clk 0:01:57]}  Bxb3 {[%clk 0:00:38]} 15. cxb3 {[%clk 0:01:55]}  Re8 {[%clk 0:00:28]} 16. Qxd6 {[%clk 0:01:46]}  Qxd6 {[%clk 0:00:25]} 17. Rxd6 {[%clk 0:01:45]}  Rac8 {[%clk 0:00:23]} 18. O-O {[%clk 0:01:40]}  Bf8 {[%clk 0:00:22]} 19. Rdd1 {[%clk 0:01:37]}  Nc6 {[%clk 0:00:21]} 20. Bc4 {[%clk 0:01:32]}  Nd4 {[%clk 0:00:20]} 21. Kh1 {[%clk 0:01:12]}  Kg7 {[%clk 0:00:21]} 22. Rxd4 {[%clk 0:00:52]}  cxd4 {[%clk 0:00:22]} 23. Bxd4 {[%clk 0:00:52]}  Bc5 {[%clk 0:00:21]} 24. Bxf6+ {[%clk 0:00:42]}  Kxf6 {[%clk 0:00:21]} 25. Nd5+ {[%clk 0:00:42]}  Kg7 {[%clk 0:00:21]} 26. g3 {[%clk 0:00:32]}  Bd4 {[%clk 0:00:21]} 27. Kg2 {[%clk 0:00:28]}  Bxb2 {[%clk 0:00:21]} 28. Re1 {[%clk 0:00:19]}  Bc3 {[%clk 0:00:20]} 29. Re2 {[%clk 0:00:19]}  Rb8 {[%clk 0:00:20]} 30. Bd3 {[%clk 0:00:15]}  Bd4 {[%clk 0:00:20]} 31. Rc2 {[%clk 0:00:14]}  b5 {[%clk 0:00:20]} 32. axb5 {[%clk 0:00:13]}  axb5 {[%clk 0:00:21]} 33. Rc7 {[%clk 0:00:12]}  Kf8 {[%clk 0:00:20]} 34. Rd7 {[%clk 0:00:09]}  Bf6 {[%clk 0:00:19]} 35. f4 {[%clk 0:00:08]}  Be7 {[%clk 0:00:19]} 36. e5 {[%clk 0:00:07]}  Ba3 {[%clk 0:00:17]} 37. Kf3 {[%clk 0:00:05]}  Red8 {[%clk 0:00:17]} 38. Rxd8+ {[%clk 0:00:04]}  Rxd8 {[%clk 0:00:17]} 39. Ke4 {[%clk 0:00:04]}  Rb8 {[%clk 0:00:18]} 40. Nc7 {[%clk 0:00:04]}  b4 {[%clk 0:00:15]} 41. Nd5 {[%clk 0:00:04]}  Bb2 {[%clk 0:00:12]} 42. Bc4 {[%clk 0:00:03]}  Bc3 {[%clk 0:00:12]} 43. Nf6 {[%clk 0:00:02]}  Ke7 {[%clk 0:00:12]} 44. Nd5+ {[%clk 0:00:02]}  Kd8 {[%clk 0:00:11]} 45. f5 {[%clk 0:00:01]}  gxf5+ {[%clk 0:00:10]} 46. Kxf5 {[%clk 0:00:02]}  Ke8 {[%clk 0:00:10]} 47. Be2 {[%clk 0:00:01]}  Kf8 {[%clk 0:00:09]} 48. Bxh5 {[%clk 0:00:01]}  Re8 {[%clk 0:00:09]} 0-1


[Site "https://www.chess.com"]

[Event "Titled Tuesday Blitz May 4 2021"]
[White "Escalante Ramirez, Brian Sebasti"]
[Black "Hess, Robert"]
[WhiteFideId "3819566"]
[BlackFideId "2022036"]
[WhiteElo "2193"]
[BlackElo "2557"]
[Result "0-1"]
[Round "05"]
[TimeControl "180+1"]
[Date "2021.05.04"]
[WhiteClock "0:00:04"]
[BlackClock "0:00:02"]

1. e4 {[%clk 0:02:51]}  g6 {[%clk 0:02:59]} 2. d4 {[%clk 0:02:50]}  Bg7 {[%clk 0:02:59]} 3. Nf3 {[%clk 0:02:50]}  a6 {[%clk 0:02:58]} 4. a4 {[%clk 0:02:49]}  d6 {[%clk 0:02:58]} 5. Bc4 {[%clk 0:02:49]}  e6 {[%clk 0:02:58]} 6. O-O {[%clk 0:02:48]}  Ne7 {[%clk 0:02:58]} 7. Nc3 {[%clk 0:02:47]}  Nd7 {[%clk 0:02:58]} 8. a5 {[%clk 0:02:46]}  O-O {[%clk 0:02:56]} 9. Re1 {[%clk 0:02:44]}  b5 {[%clk 0:02:46]} 10. axb6 {[%clk 0:02:44]}  cxb6 {[%clk 0:02:47]} 11. d5 {[%clk 0:02:38]}  e5 {[%clk 0:02:42]} 12. Qe2 {[%clk 0:02:33]}  Bb7 {[%clk 0:02:32]} 13. h4 {[%clk 0:02:04]}  b5 {[%clk 0:02:31]} 14. Bb3 {[%clk 0:01:59]}  Nc5 {[%clk 0:02:31]} 15. h5 {[%clk 0:01:57]}  gxh5 {[%clk 0:02:06]} 16. Nh4 {[%clk 0:01:40]}  Nxd5 {[%clk 0:01:24]} 17. Nf5 {[%clk 0:01:39]}  Nxc3 {[%clk 0:01:23]} 18. bxc3 {[%clk 0:01:38]}  Bxe4 {[%clk 0:01:18]} 19. Nxg7 {[%clk 0:01:38]}  Kxg7 {[%clk 0:01:18]} 20. Qxh5 {[%clk 0:01:38]}  Qf6 {[%clk 0:01:07]} 21. Re3 {[%clk 0:01:32]}  Kh8 {[%clk 0:00:54]} 22. Rh3 {[%clk 0:01:12]}  Qg6 {[%clk 0:00:37]} 23. Bg5 {[%clk 0:01:12]}  f6 {[%clk 0:00:22]} 24. Qxg6 {[%clk 0:01:08]}  Bxg6 {[%clk 0:00:23]} 25. Bh6 {[%clk 0:01:08]}  Nxb3 {[%clk 0:00:21]} 26. cxb3 {[%clk 0:01:07]}  Rfc8 {[%clk 0:00:20]} 27. f4 {[%clk 0:01:01]}  Kg8 {[%clk 0:00:18]} 28. Rd1 {[%clk 0:00:59]}  Rc6 {[%clk 0:00:17]} 29. fxe5 {[%clk 0:00:58]}  fxe5 {[%clk 0:00:16]} 30. c4 {[%clk 0:00:53]}  bxc4 {[%clk 0:00:16]} 31. bxc4 {[%clk 0:00:54]}  Kf7 {[%clk 0:00:15]} 32. Rb3 {[%clk 0:00:22]}  Ke6 {[%clk 0:00:13]} 33. Rb7 {[%clk 0:00:22]}  Rxc4 {[%clk 0:00:13]} 34. Bg5 {[%clk 0:00:22]}  Rd4 {[%clk 0:00:08]} 35. Re7+ {[%clk 0:00:21]}  Kd5 {[%clk 0:00:08]} 36. Rc1 {[%clk 0:00:20]}  a5 {[%clk 0:00:06]} 37. Be3 {[%clk 0:00:12]}  Rd3 {[%clk 0:00:06]} 38. Bb6 {[%clk 0:00:12]}  a4 {[%clk 0:00:06]} 39. Bc7 {[%clk 0:00:11]}  a3 {[%clk 0:00:06]} 40. Re1 {[%clk 0:00:06]}  a2 {[%clk 0:00:05]} 41. Rd7 {[%clk 0:00:05]}  a1=Q {[%clk 0:00:04]} 42. Rxd6+ {[%clk 0:00:04]}  Kc4 {[%clk 0:00:02]} 0-1


[Site "https://www.chess.com"]

[Event "Titled Tuesday Blitz May 4 2021"]
[White "Escobar Forero, Alder"]
[Black "Martin, Lewis"]
[WhiteFideId "4400801"]
[BlackFideId "410551"]
[WhiteElo "2513"]
[BlackElo "2145"]
[Result "1-0"]
[Round "05"]
[TimeControl "180+1"]
[Date "2021.05.04"]
[WhiteClock "0:00:37"]
[BlackClock "0:00:33"]

1. d4 {[%clk 0:02:49]}  d5 {[%clk 0:02:59]} 2. Nf3 {[%clk 0:02:48]}  Nf6 {[%clk 0:02:59]} 3. Bg5 {[%clk 0:02:47]}  Ne4 {[%clk 0:02:58]} 4. Bf4 {[%clk 0:02:46]}  c5 {[%clk 0:02:50]} 5. c4 {[%clk 0:02:41]}  e6 {[%clk 0:02:46]} 6. Nc3 {[%clk 0:02:34]}  Nxc3 {[%clk 0:02:41]} 7. bxc3 {[%clk 0:02:33]}  Nc6 {[%clk 0:02:37]} 8. e3 {[%clk 0:02:25]}  Qa5 {[%clk 0:02:30]} 9. Qb3 {[%clk 0:02:22]}  Be7 {[%clk 0:02:15]} 10. cxd5 {[%clk 0:02:04]}  exd5 {[%clk 0:02:14]} 11. Be2 {[%clk 0:01:57]}  O-O {[%clk 0:02:12]} 12. O-O {[%clk 0:01:56]}  c4 {[%clk 0:02:06]} 13. Qc2 {[%clk 0:01:53]}  g6 {[%clk 0:01:52]} 14. Nd2 {[%clk 0:01:49]}  Bf5 {[%clk 0:01:50]} 15. e4 {[%clk 0:01:43]}  dxe4 {[%clk 0:01:46]} 16. Nxc4 {[%clk 0:01:36]}  Qd8 {[%clk 0:01:37]} 17. g4 {[%clk 0:01:35]}  Be6 {[%clk 0:01:33]} 18. Qxe4 {[%clk 0:01:35]}  Bd5 {[%clk 0:01:29]} 19. Qe3 {[%clk 0:01:31]}  Re8 {[%clk 0:01:28]} 20. Qh3 {[%clk 0:01:18]}  Qd7 {[%clk 0:01:23]} 21. Ne3 {[%clk 0:01:15]}  Be6 {[%clk 0:01:17]} 22. Qg2 {[%clk 0:01:11]}  Bf8 {[%clk 0:00:55]} 23. d5 {[%clk 0:01:06]}  Bxd5 {[%clk 0:00:53]} 24. Nxd5 {[%clk 0:01:05]}  Bg7 {[%clk 0:00:44]} 25. Bb5 {[%clk 0:01:01]}  a6 {[%clk 0:00:33]} 26. Bxc6 {[%clk 0:00:38]}  Qxc6 {[%clk 0:00:32]} 27. Nc7 {[%clk 0:00:38]}  Qxg2+ {[%clk 0:00:31]} 28. Kxg2 {[%clk 0:00:37]}  Rac8 {[%clk 0:00:32]} 29. Nxe8 {[%clk 0:00:37]}  Rxe8 {[%clk 0:00:33]} 1-0


[Site "https://www.chess.com"]

[Event "Titled Tuesday Blitz May 4 2021"]
[White "Estrada Nieto, Julian"]
[Black "Kett, Tim"]
[WhiteFideId "5101018"]
[BlackFideId "1801210"]
[WhiteElo "2270"]
[BlackElo "2098"]
[Result "1/2-1/2"]
[Round "05"]
[TimeControl "180+1"]
[Date "2021.05.04"]
[WhiteClock "0:00:06"]
[BlackClock "0:01:03"]

1. e4 {[%clk 0:03:00]}  e5 {[%clk 0:02:54]} 2. Nf3 {[%clk 0:02:59]}  Nc6 {[%clk 0:02:51]} 3. Bb5 {[%clk 0:02:58]}  Nge7 {[%clk 0:02:50]} 4. Nc3 {[%clk 0:02:57]}  g6 {[%clk 0:02:48]} 5. d4 {[%clk 0:02:56]}  exd4 {[%clk 0:02:44]} 6. Nd5 {[%clk 0:02:54]}  Bg7 {[%clk 0:02:42]} 7. Bg5 {[%clk 0:02:53]}  f6 {[%clk 0:02:34]} 8. Nxf6+ {[%clk 0:02:28]}  Kf7 {[%clk 0:02:30]} 9. Nd5 {[%clk 0:02:25]}  h6 {[%clk 0:02:01]} 10. Bxc6 {[%clk 0:02:10]}  hxg5 {[%clk 0:02:00]} 11. Nxg5+ {[%clk 0:01:54]}  Kg8 {[%clk 0:02:01]} 12. Nxe7+ {[%clk 0:01:27]}  Qxe7 {[%clk 0:01:52]} 13. Bd5+ {[%clk 0:01:24]}  Kf8 {[%clk 0:01:52]} 14. Qf3+ {[%clk 0:01:09]}  Qf6 {[%clk 0:01:41]} 15. O-O-O {[%clk 0:00:56]}  d3 {[%clk 0:01:33]} 16. Rxd3 {[%clk 0:00:51]}  c6 {[%clk 0:01:30]} 17. Bb3 {[%clk 0:00:50]}  d5 {[%clk 0:01:25]} 18. exd5 {[%clk 0:00:45]}  Bf5 {[%clk 0:01:25]} 19. Ne6+ {[%clk 0:00:29]}  Kf7 {[%clk 0:01:11]} 20. Nxg7 {[%clk 0:00:17]}  Bxd3 {[%clk 0:01:11]} 21. Qxd3 {[%clk 0:00:12]}  Kxg7 {[%clk 0:01:08]} 22. dxc6 {[%clk 0:00:11]}  bxc6 {[%clk 0:01:06]} 23. Qd7+ {[%clk 0:00:11]}  Kh6 {[%clk 0:01:06]} 24. Qh3+ {[%clk 0:00:09]}  Kg7 {[%clk 0:01:05]} 25. Qd7+ {[%clk 0:00:08]}  Kh6 {[%clk 0:01:03]} 26. Qh3+ {[%clk 0:00:07]}  Kg7 {[%clk 0:01:03]} 27. Qd7+ {[%clk 0:00:06]} 1/2-1/2


[Site "https://www.chess.com"]

[Event "Titled Tuesday Blitz May 4 2021"]
[White "Ezat, Mohamed"]
[Black "Jakubowska, Anna"]
[WhiteFideId "10600906"]
[BlackFideId "1121952"]
[WhiteElo "2417"]
[BlackElo "2006"]
[Result "1-0"]
[Round "05"]
[TimeControl "180+1"]
[Date "2021.05.04"]
[WhiteClock "0:01:16"]
[BlackClock "0:00:28"]

1. d4 {[%clk 0:03:00]}  d5 {[%clk 0:02:59]} 2. c4 {[%clk 0:03:01]}  c6 {[%clk 0:02:58]} 3. Nc3 {[%clk 0:03:00]}  Nf6 {[%clk 0:02:57]} 4. cxd5 {[%clk 0:03:01]}  cxd5 {[%clk 0:02:57]} 5. Bf4 {[%clk 0:03:01]}  a6 {[%clk 0:02:57]} 6. e3 {[%clk 0:03:01]}  Nc6 {[%clk 0:02:56]} 7. Bd3 {[%clk 0:02:50]}  g6 {[%clk 0:02:55]} 8. h3 {[%clk 0:02:49]}  Bg7 {[%clk 0:02:55]} 9. Nf3 {[%clk 0:02:49]}  O-O {[%clk 0:02:53]} 10. Rc1 {[%clk 0:02:50]}  Bf5 {[%clk 0:02:51]} 11. Bxf5 {[%clk 0:02:50]}  gxf5 {[%clk 0:02:52]} 12. g4 {[%clk 0:02:50]}  Qd7 {[%clk 0:02:39]} 13. Ne5 {[%clk 0:02:34]}  Qe6 {[%clk 0:02:21]} 14. Qd3 {[%clk 0:02:11]}  Ne4 {[%clk 0:02:06]} 15. gxf5 {[%clk 0:02:06]}  Qxf5 {[%clk 0:02:03]} 16. Nxd5 {[%clk 0:02:01]}  Rad8 {[%clk 0:01:46]} 17. Nxc6 {[%clk 0:01:58]}  Kh8 {[%clk 0:01:20]} 18. Ndxe7 {[%clk 0:01:55]}  Qe6 {[%clk 0:01:12]} 19. Nxd8 {[%clk 0:01:52]}  Qxe7 {[%clk 0:01:12]} 20. Ke2 {[%clk 0:01:34]}  Rxd8 {[%clk 0:01:07]} 21. Rc7 {[%clk 0:01:33]}  Qe6 {[%clk 0:01:00]} 22. Qc4 {[%clk 0:01:32]}  Qe8 {[%clk 0:00:38]} 23. Rg1 {[%clk 0:01:20]}  Rd7 {[%clk 0:00:27]} 24. Rc8 {[%clk 0:01:17]}  Rd8 {[%clk 0:00:28]} 25. Rxd8 {[%clk 0:01:17]}  Qxd8 {[%clk 0:00:28]} 26. Qxf7 {[%clk 0:01:16]} 1-0


[Site "https://www.chess.com"]

[Event "Titled Tuesday Blitz May 4 2021"]
[White "Fernandez, Michael"]
[Black "Demin, Vladimir"]
[WhiteFideId "5803560"]
[BlackFideId "4167457"]
[WhiteElo "2110"]
[BlackElo "2464"]
[Result "0-1"]
[Round "05"]
[TimeControl "180+1"]
[Date "2021.05.04"]
[WhiteClock "0:00:37"]
[BlackClock "0:01:39"]

1. e4 {[%clk 0:02:59]}  e5 {[%clk 0:02:57]} 2. f4 {[%clk 0:02:59]}  d5 {[%clk 0:02:57]} 3. exd5 {[%clk 0:02:59]}  exf4 {[%clk 0:02:57]} 4. Nc3 {[%clk 0:02:59]}  Nf6 {[%clk 0:02:54]} 5. Nf3 {[%clk 0:02:53]}  Nxd5 {[%clk 0:02:54]} 6. Bc4 {[%clk 0:02:46]}  Nxc3 {[%clk 0:02:50]} 7. bxc3 {[%clk 0:02:47]}  Bd6 {[%clk 0:02:49]} 8. O-O {[%clk 0:02:41]}  O-O {[%clk 0:02:49]} 9. d4 {[%clk 0:02:37]}  Be6 {[%clk 0:02:48]} 10. Bd3 {[%clk 0:02:34]}  Nd7 {[%clk 0:02:45]} 11. h4 {[%clk 0:02:15]}  Bg4 {[%clk 0:02:42]} 12. Qe1 {[%clk 0:02:11]}  Re8 {[%clk 0:02:41]} 13. Qf2 {[%clk 0:02:11]}  Nf6 {[%clk 0:02:39]} 14. Ne5 {[%clk 0:02:01]}  Rxe5 {[%clk 0:02:28]} 15. dxe5 {[%clk 0:02:02]}  Bxe5 {[%clk 0:02:29]} 16. Bxf4 {[%clk 0:02:01]}  Bxc3 {[%clk 0:02:26]} 17. Rab1 {[%clk 0:01:52]}  Qd5 {[%clk 0:02:15]} 18. Kh1 {[%clk 0:01:26]}  Re8 {[%clk 0:02:08]} 19. Bg5 {[%clk 0:01:12]}  h6 {[%clk 0:02:01]} 20. Bxf6 {[%clk 0:01:08]}  Bxf6 {[%clk 0:01:59]} 21. Bf5 {[%clk 0:01:05]}  Re2 {[%clk 0:01:51]} 22. Bxg4 {[%clk 0:00:48]}  Rxf2 {[%clk 0:01:46]} 23. Rxf2 {[%clk 0:00:49]}  Qe4 {[%clk 0:01:41]} 24. Rxf6 {[%clk 0:00:38]}  gxf6 {[%clk 0:01:39]} 25. Bf3 {[%clk 0:00:38]}  Qxh4+ {[%clk 0:01:38]} 26. Kg1 {[%clk 0:00:38]}  Qd4+ {[%clk 0:01:38]} 27. Kh1 {[%clk 0:00:37]}  b6 {[%clk 0:01:39]} 0-1


[Site "https://www.chess.com"]